bitfinex/quotes_BTCUSD_20250830
["timestamp","ask_amount","ask_price","bid_price","bid_amount"]
[1756544705488,2.75416254,108800.0,108790.0,1e-08]
[1756544705719,2.59999114,108800.0,108790.0,1e-08]
[1756544705948,2.75415114,108800.0,108790.0,1e-08]
[1756544708188,2.75414262,108800.0,108790.0,1e-08]
[1756544708822,2.59998262,108800.0,108790.0,1e-08]
[1756544709023,2.75410262,108800.0,108790.0,1e-08]
[1756544709683,4.094373,108800.0,108790.0,1e-08]
[1756544709910,4.089373,108800.0,108790.0,1e-08]
[1756544710124,4.086373,108800.0,108790.0,0.01608876]
[1756544710332,4.089373,108800.0,108790.0,0.01608876]
[1756544710538,1.49721912,108800.0,108790.0,0.01608876]
[1756544710758,4.03608256,108800.0,108790.0,0.01608876]
[1756544711397,2.5086863,108800.0,108790.0,0.02115876]
[1756544711617,2.6642063,108800.0,108790.0,0.02115876]
[1756544712096,2.6642063,108800.0,108790.0,0.01906876]
[1756544713162,2.66420175,108800.0,108790.0,0.01906876]
[1756544713851,2.66419652,108800.0,108790.0,0.02115876]
[1756544714062,2.59697284,108800.0,108790.0,0.02115876]
[1756544714267,2.75245284,108800.0,108790.0,0.02115876]
[1756544714471,2.75245284,108800.0,108790.0,0.01906876]
[1756544720801,2.59697284,108800.0,108790.0,0.02114876]
[1756544721013,2.73251161,108800.0,108790.0,0.02114876]
[1756544721219,2.64421529,108800.0,108790.0,0.02114876]
[1756544722507,2.64417529,108800.0,108790.0,0.02114876]
[1756544722720,2.52380674,108800.0,108790.0,0.02114876]
[1756544722929,2.54474556,108800.0,108790.0,0.02114876]
[1756544723146,1.26116562,108800.0,108790.0,0.02114876]
[1756544723383,1.70620558,108800.0,108790.0,0.02114876]
[1756544723659,2.04620558,108800.0,108790.0,0.02114876]
[1756544723883,2.02526676,108800.0,108790.0,0.02114876]
[1756544724527,2.02528477,108800.0,108790.0,0.02114876]
[1756544725164,1.99764777,108800.0,108790.0,0.02114876]
[1756544726127,2.02528477,108800.0,108790.0,0.02114876]
[1756544730230,2.00806749,108800.0,108790.0,0.02114876]
[1756544731074,1.85274749,108800.0,108790.0,0.02114876]
[1756544731317,2.00838749,108800.0,108790.0,0.02114876]
[1756544734579,2.00830749,108800.0,108790.0,0.02114876]
[1756544736000,1.85274749,108800.0,108790.0,0.02114876]
[1756544736197,2.00826749,108800.0,108790.0,0.02114876]
[1756544736842,1.15254753,108800.0,108790.0,0.02114876]
[1756544737021,2.00826749,108800.0,108790.0,0.02114876]
[1756544738029,1.85274749,108800.0,108790.0,0.02114876]
[1756544738234,2.00826749,108800.0,108790.0,0.02114876]
[1756544739635,1.85274749,108800.0,108790.0,0.02114876]
[1756544739942,2.00822749,108800.0,108790.0,0.02114876]
[1756544740486,2.00818749,108800.0,108790.0,0.02114876]
[1756544740724,1.85274749,108800.0,108790.0,0.02114876]
[1756544740944,2.00814749,108800.0,108790.0,0.02114876]
[1756544742286,1.85274749,108800.0,108790.0,0.02114876]
[1756544742504,2.00810749,108800.0,108790.0,0.02114876]
[1756544743364,1.85274749,108800.0,108790.0,0.02114876]
[1756544743575,2.00810749,108800.0,108790.0,0.02114876]
[1756544744429,1.85274749,108800.0,108790.0,0.02114876]
[1756544744607,2.00806749,108800.0,108790.0,0.02114876]
[1756544745183,1.98043049,108800.0,108790.0,0.02114876]
[1756544746818,2.00316294,108800.0,108790.0,0.02114876]
[1756544748226,2.02038553,108800.0,108790.0,0.02114876]
[1756544752573,2.44824551,108800.0,108790.0,0.01906876]
[1756544755014,2.42551306,108800.0,108790.0,0.01906876]
[1756544756267,2.42554374,108800.0,108790.0,0.01906876]
[1756544757218,2.27022374,108800.0,108790.0,0.01906876]
[1756544757364,2.42526374,108800.0,108790.0,0.01906876]
[1756544758015,2.27022374,108800.0,108790.0,0.01906876]
[1756544758360,2.42526374,108800.0,108790.0,0.01906876]
[1756544759598,2.4881413,108800.0,108790.0,0.01608876]
[1756544759811,2.57117582,108800.0,108790.0,0.01608876]
[1756544760017,2.69179683,108800.0,108790.0,0.01608876]
[1756544760217,2.76247683,108800.0,108790.0,0.01608876]
[1756544760654,3.19033681,108800.0,108790.0,0.01608876]
[1756544764199,3.19030811,108800.0,108790.0,0.01608876]
[1756544765672,3.19028621,108800.0,108790.0,0.01608876]
[1756544769371,3.16188386,108800.0,108790.0,0.01608876]
[1756544769793,3.16188254,108800.0,108790.0,0.01608876]
[1756544776231,3.13821979,108800.0,108790.0,0.01608876]
[1756544776437,3.16187372,108800.0,108790.0,0.01608876]
[1756544777550,3.16181545,108800.0,108790.0,0.01608876]
[1756544780774,3.19020945,108800.0,108790.0,0.01608876]
[1756544781392,3.16181545,108800.0,108790.0,0.01608876]
[1756544783345,3.16182553,108800.0,108790.0,0.01608876]
[1756544784419,3.16182818,108800.0,108790.0,0.01902876]
[1756544785413,3.16182818,108800.0,108790.0,0.01608876]
[1756544786817,3.16183579,108800.0,108790.0,0.01608876]
[1756544787018,3.16183964,108800.0,108790.0,0.01608876]
[1756544787766,3.16184149,108800.0,108790.0,0.01608876]
[1756544788662,3.16128149,108800.0,108790.0,0.01608876]
[1756544789099,4.04539545,108800.0,108790.0,1e-08]
[1756544789319,4.07017781,108800.0,108790.0,1e-08]
[1756544793500,8.62961247,108800.0,108790.0,1e-08]
[1756544793725,1.82839299,108770.0,108760.0,0.00294]
[1756544793929,1.82839299,108770.0,108760.0,0.0029876]
[1756544793930,2.1904249,108770.0,108760.0,0.0029876]
[1756544794131,2.20766204,108770.0,108760.0,0.0029876]
[1756544794538,2.23531104,108770.0,108760.0,0.0029876]
[1756544794915,2.23731104,108770.0,108760.0,0.0029876]
[1756544795423,2.21749498,108770.0,108760.0,0.0029876]
[1756544795867,2.21849498,108770.0,108760.0,0.0050876]
[1756544797587,2.21846611,108770.0,108760.0,0.0050876]
[1756544797790,1.79060613,108770.0,108760.0,0.0050876]
[1756544798233,1.79060245,108770.0,108760.0,0.0050876]
[1756544798439,1.63612245,108770.0,108760.0,0.0050876]
[1756544798655,1.79056245,108770.0,108760.0,0.0050876]
[1756544799786,2.08562245,108770.0,108760.0,0.0050876]
[1756544799996,2.24006245,108770.0,108760.0,0.0050876]
[1756544802078,2.24006245,108770.0,108760.0,0.0235176]
[1756544802320,2.24006245,108770.0,108760.0,0.0050876]
[1756544804161,2.2336076,108770.0,108760.0,0.0050876]
[1756544805980,2.2335276,108770.0,108760.0,0.0050876]
[1756544808153,2.23351145,108770.0,108760.0,0.0050876]
[1756544808353,2.01210317,108770.0,108760.0,0.0050876]
[1756544808592,1.87257263,108770.0,108760.0,0.0050876]
[1756544808754,1.87257277,108770.0,108760.0,0.0050876]
[1756544808953,1.78427645,108770.0,108760.0,0.0050876]
[1756544810402,1.80521527,108770.0,108760.0,0.0050876]
[1756544810787,1.65085527,108770.0,108760.0,0.0050876]
[1756544810991,1.80521527,108770.0,108760.0,0.0050876]
[1756544813002,1.80521527,108770.0,108760.0,0.0029876]
[1756544813616,2.15166368,108770.0,108760.0,0.0029876]
[1756544814175,2.14521527,108770.0,108760.0,0.0051076]
[1756544814374,2.15166421,108770.0,108760.0,0.0051076]
[1756544815207,2.14521527,108770.0,108760.0,0.0051076]
[1756544815520,2.15166492,108770.0,108760.0,0.0051076]
[1756544816470,2.23996124,108770.0,108760.0,0.0051076]
[1756544818806,2.23998224,108770.0,108760.0,0.0051076]
[1756544819486,2.25981223,108770.0,108760.0,0.0051076]
[1756544819686,1.40409227,108770.0,108760.0,0.0051076]
[1756544819925,2.25981223,108770.0,108760.0,0.0051076]
[1756544820807,1.14049713,108770.0,108760.0,0.0051076]
[1756544821011,0.65358434,108770.0,108760.0,0.0051076]
[1756544821217,1.08144432,108770.0,108760.0,0.0051076]
[1756544821620,0.65358434,108770.0,108760.0,0.0051076]
[1756544821807,0.20408434,108770.0,108760.0,0.00740623]
[1756544822008,0.63194432,108770.0,108760.0,0.00740623]
[1756544822592,0.18687423,108770.0,108760.0,0.19129736]
[1756544822795,0.18387423,108770.0,108760.0,0.18899873]
[1756544823010,0.18387423,108770.0,108760.0,0.0051076]
[1756544823224,0.18387423,108770.0,108760.0,0.00740623]
[1756544823816,0.61173421,108770.0,108760.0,0.00740623]
[1756544824193,0.61173421,108770.0,108760.0,0.00840623]
[1756544824838,0.52387423,108770.0,108760.0,0.00840623]
[1756544825040,0.52387423,108770.0,108760.0,0.00740623]
[1756544825240,0.52387423,108770.0,108760.0,0.00940623]
[1756544825442,0.52387423,108770.0,108760.0,0.01040623]
[1756544828310,0.67823423,108770.0,108760.0,0.01040623]
[1756544832360,0.52387423,108770.0,108760.0,0.01040623]
[1756544833610,1.62221051,108770.0,108760.0,0.0030476]
[1756544833871,1.69610323,108770.0,108760.0,0.0030476]
[1756544834071,1.72374923,108770.0,108760.0,0.0030476]
[1756544834278,1.72374923,108770.0,108760.0,0.0020476]
[1756544834695,1.199875,108770.0,108760.0,4.76e-05]
[1756544834905,1.35535523,108770.0,108760.0,4.76e-05]
[1756544835082,1.35735523,108770.0,108760.0,4.76e-05]
[1756544835459,0.92984694,108770.0,108760.0,4.76e-05]
[1756544836099,1.04376577,108770.0,108760.0,4.76e-05]
[1756544836427,1.07215977,108770.0,108760.0,4.76e-05]
[1756544836628,1.07415977,108770.0,108760.0,4.76e-05]
[1756544838227,0.6175541,108770.0,108760.0,4.76e-05]
[1756544838401,1.04576577,108770.0,108760.0,4.76e-05]
[1756544838866,1.04576453,108770.0,108760.0,4.76e-05]
[1756544839219,1.04576487,108770.0,108760.0,4.76e-05]
[1756544839442,1.04576479,108770.0,108760.0,4.76e-05]
[1756544841357,1.49526479,108770.0,108760.0,4.76e-05]
[1756544842092,0.8244368,108770.0,108760.0,4.76e-05]
[1756544842297,1.40696847,108770.0,108760.0,4.76e-05]
[1756544846953,1.87002004,108770.0,108760.0,4.76e-05]
[1756544847578,1.44180837,108770.0,108760.0,4.76e-05]
[1756544847798,1.87002004,108770.0,108760.0,4.76e-05]
[1756544848021,1.95831636,108770.0,108760.0,4.76e-05]
[1756544849478,1.95831369,108770.0,108760.0,4.76e-05]
[1756544849815,1.95831362,108770.0,108760.0,4.76e-05]
[1756544850017,1.95186848,108770.0,108760.0,4.76e-05]
[1756544850229,1.95831362,108770.0,108760.0,4.76e-05]
[1756544851544,1.53010195,108770.0,108760.0,4.76e-05]
[1756544852191,1.95831362,108770.0,108760.0,4.76e-05]
[1756544852918,1.9583126,108770.0,108760.0,4.76e-05]
[1756544853734,1.53010093,108770.0,108760.0,4.76e-05]
[1756544855992,1.9583126,108770.0,108760.0,4.76e-05]
[1756544856192,2.2983126,108770.0,108760.0,4.76e-05]
[1756544856430,2.29831437,108770.0,108760.0,4.76e-05]
[1756544857189,1.8701027,108770.0,108760.0,4.76e-05]
[1756544857386,2.29836873,108770.0,108760.0,4.76e-05]
[1756544857796,2.29636873,108770.0,108760.0,4.76e-05]
[1756544858246,2.29836873,108770.0,108760.0,4.76e-05]
[1756544858441,2.31617593,108770.0,108760.0,4.76e-05]
[1756544858765,2.74241478,108770.0,108760.0,4.76e-05]
[1756544858919,2.74441478,108770.0,108760.0,4.76e-05]
[1756544859566,2.74241478,108770.0,108760.0,4.76e-05]
[1756544859753,2.74341478,108770.0,108760.0,4.76e-05]
[1756544859913,2.73697883,108770.0,108760.0,4.76e-05]
[1756544860144,2.74342769,108770.0,108760.0,4.76e-05]
[1756544860805,2.74342916,108770.0,108760.0,4.76e-05]
[1756544865597,2.74342916,108770.0,108760.0,0.0032576]
[1756544865820,2.74342916,108770.0,108760.0,0.0053876]
[1756544866970,2.7434377,108770.0,108760.0,0.0032576]
[1756544870666,2.71515847,108770.0,108760.0,0.0032576]
[1756544871119,2.69793277,108770.0,108760.0,0.0032576]
[1756544871335,2.71515848,108770.0,108760.0,0.0032576]
[1756544872015,2.74347948,108770.0,108760.0,0.0032576]
[1756544875840,2.74347948,108770.0,108760.0,4.76e-05]
[1756544876488,2.74347948,108770.0,108760.0,0.0051776]
[1756544876892,2.74247948,108770.0,108760.0,0.0051776]
[1756544877311,2.74547948,108770.0,108760.0,0.0051776]
[1756544877519,2.74547948,108770.0,108760.0,0.0031076]
[1756544877898,2.77022906,108770.0,108760.0,0.0031076]
[1756544878417,2.59115948,108770.0,108760.0,0.0051776]
[1756544878629,2.74547948,108770.0,108760.0,0.0051776]
[1756544880362,2.74547948,108770.0,108760.0,0.0031076]
[1756544880737,2.76376942,108770.0,108760.0,0.0031076]
[1756544880938,2.77023862,108770.0,108760.0,0.0031076]
[1756544881489,2.74548912,108770.0,108760.0,0.0031076]
[1756544882074,2.59116912,108770.0,108760.0,0.0031076]
[1756544882302,2.74548912,108770.0,108760.0,0.0051776]
[1756544882925,2.71709512,108770.0,108760.0,0.0051776]
[1756544883566,2.71709451,108770.0,108760.0,0.0031076]
[1756544885760,2.47490648,108770.0,108760.0,0.0031076]
[1756544885963,2.65878071,108770.0,108760.0,0.0031076]
[1756544886192,2.66246771,108770.0,108760.0,0.0031076]
[1756544890738,2.6625141,108770.0,108760.0,0.0031076]
[1756544895072,0.52390804,108750.0,108740.0,0.0004]
[1756544895360,1.55189879,108750.0,108740.0,0.00087825]
[1756544895566,1.55189879,108750.0,108740.0,0.00294825]
[1756544897275,1.55189879,108750.0,108740.0,0.00600825]
[1756544897502,1.64019511,108750.0,108740.0,0.00700825]
[1756544899537,1.48591511,108750.0,108740.0,0.00700825]
[1756544899902,1.39761879,108750.0,108740.0,0.00700825]
[1756544900118,1.55189879,108750.0,108740.0,0.00700825]
[1756544901270,1.53466574,108750.0,108740.0,0.00700825]
[1756544901475,1.55190108,108750.0,108740.0,0.00700825]
[1756544902779,0.54114338,108750.0,108740.0,0.00700825]
[1756544902985,1.12366223,108750.0,108740.0,0.00700825]
[1756544904262,1.21195855,108750.0,108740.0,0.00700825]
[1756544905450,1.21842211,108750.0,108740.0,0.00700825]
[1756544905853,1.13012579,108750.0,108740.0,0.00700825]
[1756544906076,1.55836464,108750.0,108740.0,0.00700825]
[1756544909894,0.70188694,108750.0,108740.0,0.00700825]
[1756544910137,1.55836464,108750.0,108740.0,0.00700825]
[1756544910503,0.70188694,108750.0,108740.0,0.00700825]
[1756544910742,1.55836464,108750.0,108740.0,0.00700825]
[1756544911071,1.12366223,108750.0,108740.0,0.00700825]
[1756544911274,1.55190108,108750.0,108740.0,0.00700825]
[1756544911829,1.55190285,108750.0,108740.0,0.00700825]
[1756544912399,1.64019917,108750.0,108740.0,0.00700825]
[1756544913315,1.64217917,108750.0,108740.0,0.00700825]
[1756544914470,1.64864307,108750.0,108740.0,0.00700825]
[1756544922443,1.6314062,108750.0,108740.0,0.00700825]
[1756544922668,1.64864392,108750.0,108740.0,0.00700825]
[1756544923375,1.64864397,108750.0,108740.0,0.00700825]
[1756544923653,1.56034765,108750.0,108740.0,0.00700825]
[1756544925694,1.56994565,108750.0,108740.0,0.01660625]
[1756544926309,2.14284752,108750.0,108740.0,0.00187825]
[1756544926497,1.76285998,108750.0,108740.0,0.00187825]
[1756544927691,1.76285998,108750.0,108740.0,0.00087825]
[1756544927921,1.8247623,108750.0,108740.0,0.00087825]
[1756544928653,1.8257623,108750.0,108740.0,0.00087825]
[1756544929752,1.8233123,108750.0,108740.0,0.00087825]
[1756544930177,1.80345499,108750.0,108740.0,0.00087825]
[1756544931233,1.80586499,108750.0,108740.0,0.00087825]
[1756544931432,1.80345499,108750.0,108740.0,0.00087825]
[1756544932253,1.64921499,108750.0,108740.0,0.00087825]
[1756544932596,1.80345499,108750.0,108740.0,0.00087825]
[1756544933013,1.80343718,108750.0,108740.0,0.00087825]
[1756544933864,1.80343641,108750.0,108740.0,0.00087825]
[1756544934035,1.64919641,108750.0,108740.0,0.00087825]
[1756544934266,1.80343641,108750.0,108740.0,0.00087825]
[1756544934695,1.64919641,108750.0,108740.0,0.00087825]
[1756544934903,1.71514009,108750.0,108740.0,0.00087825]
[1756544936080,1.56090009,108750.0,108740.0,0.00577825]
[1756544936287,1.6848259,108750.0,108740.0,0.00577825]
[1756544936509,1.14266822,108750.0,108740.0,0.00577825]
[1756544936689,1.13620892,108750.0,108740.0,0.00577825]
[1756544938092,0.98196892,108750.0,108740.0,0.00577825]
[1756544938305,1.13620892,108750.0,108740.0,0.00577825]
[1756544940740,0.70797007,108750.0,108740.0,0.00577825]
[1756544941173,1.13620892,108750.0,108740.0,0.00577825]
[1756544941586,1.13818892,108750.0,108740.0,0.00577825]
[1756544942489,1.13818825,108750.0,108740.0,0.00577825]
[1756544942840,1.13620825,108750.0,108740.0,0.00577825]
[1756544943048,1.13620824,108750.0,108740.0,0.00577825]
[1756544944145,1.21593634,108750.0,108740.0,0.00577825]
[1756544944544,1.13620824,108750.0,108740.0,0.00577825]
[1756544945950,0.92164319,108750.0,108740.0,0.00577825]
[1756544946235,1.10555123,108750.0,108740.0,0.00577825]
[1756544947060,1.10753123,108750.0,108740.0,0.00577825]
[1756544948659,1.10555123,108750.0,108740.0,0.00577825]
[1756544949593,1.10555059,108750.0,108740.0,0.00577825]
[1756544950166,0.7962076,108750.0,108740.0,0.00577825]
[1756544951866,0.7981876,108750.0,108740.0,0.00577825]
[1756544952291,0.7951876,108750.0,108740.0,0.00577825]
[1756544952536,0.7971876,108750.0,108740.0,0.00577825]
[1756544952764,1.31613277,108750.0,108740.0,0.00087825]
[1756544952955,1.68604025,108750.0,108740.0,0.00087825]
[1756544953087,1.70972143,108750.0,108740.0,0.00087825]
[1756544953290,1.71340743,108750.0,108740.0,0.00087825]
[1756544953535,1.71140743,108750.0,108740.0,0.00087825]
[1756544954313,1.68060343,108750.0,108740.0,0.00087825]
[1756544954497,1.68160343,108750.0,108740.0,0.00087825]
[1756544954915,1.68060343,108750.0,108740.0,0.00087825]
[1756544955513,0.70749522,108750.0,108740.0,0.00087825]
[1756544955789,1.56397292,108750.0,108740.0,0.00087825]
[1756544963520,1.54029174,108750.0,108740.0,0.00087825]
[1756544963724,1.56397881,108750.0,108740.0,0.00087825]
[1756544964392,1.56397911,108750.0,108740.0,0.00087825]
[1756544964806,1.60524985,108750.0,108740.0,0.00087825]
[1756544968927,1.63599404,108750.0,108740.0,0.00087825]
[1756544969536,1.66438804,108750.0,108740.0,0.00087825]
[1756544972739,1.66197804,108750.0,108740.0,0.00087825]
[1756544973142,1.66438804,108750.0,108740.0,0.00087825]
[1756544974142,1.64070067,108750.0,108740.0,0.00087825]
[1756544974318,1.66438615,108750.0,108740.0,0.00087825]
[1756544975909,1.66197615,108750.0,108740.0,0.00087825]
[1756544976319,1.63364196,108750.0,108740.0,0.00087825]
[1756544976745,1.63364196,108750.0,108740.0,0.01930825]
[1756544976949,0.77716426,108750.0,108740.0,0.00087825]
[1756544977157,1.63364196,108750.0,108740.0,0.00087825]
[1756544977567,1.63605196,108750.0,108740.0,0.00087825]
[1756544977803,1.63364196,108750.0,108740.0,0.00087825]
[1756544978668,1.63605196,108750.0,108740.0,0.00087825]
[1756544978878,1.67683446,108750.0,108740.0,0.00087825]
[1756544979665,1.52018446,108750.0,108740.0,0.00087825]
[1756544979888,1.67514446,108750.0,108740.0,0.00608825]
[1756544980090,1.64675046,108750.0,108740.0,0.00608825]
[1756544980278,1.60547972,108750.0,108740.0,0.00608825]
[1756544980697,1.60547972,108750.0,108740.0,0.00087825]
[1756544981254,1.60547904,108750.0,108740.0,0.00087825]
[1756544982714,1.60547904,108750.0,108740.0,0.00402825]
[1756544984713,1.58825374,108750.0,108740.0,0.00402825]
[1756544984941,1.69377541,108750.0,108740.0,0.00402825]
[1756544985553,1.69377533,108750.0,108740.0,0.00402825]
[1756544985910,1.69377533,108750.0,108740.0,0.00087825]
[1756544986789,1.69377533,108750.0,108740.0,0.00402825]
[1756544988458,1.69377481,108750.0,108740.0,0.00402825]
[1756544989268,1.76449481,108750.0,108740.0,0.00402825]
[1756544990337,1.76449481,108750.0,108740.0,0.00087825]
[1756544990946,1.76449437,108750.0,108740.0,0.00087825]
[1756544991149,1.67619805,108750.0,108740.0,0.00087825]
[1756544991377,1.67619805,108750.0,108740.0,0.00382825]
[1756544991808,0.66476035,108750.0,108740.0,0.00592825]
[1756544992024,0.66278035,108750.0,108740.0,0.00592825]
[1756544992230,1.67405805,108750.0,108740.0,0.00592825]
[1756544992597,1.76235437,108750.0,108740.0,0.00592825]
[1756544993019,1.67405805,108750.0,108740.0,0.00592825]
[1756544993426,1.67603805,108750.0,108740.0,0.00592825]
[1756544994166,1.67603805,108750.0,108740.0,0.00087825]
[1756544995499,1.67603506,108750.0,108740.0,0.00087825]
[1756544995677,1.67603506,108750.0,108740.0,0.00382825]
[1756544995905,1.76433138,108750.0,108740.0,0.00382825]
[1756544996084,1.76433223,108750.0,108740.0,0.00087825]
[1756544999002,1.7643346,108750.0,108740.0,0.00087825]
[1756545000861,1.6095346,108750.0,108740.0,0.00087825]
[1756545001075,1.7644146,108750.0,108740.0,0.00382825]
[1756545002196,1.67611828,108750.0,108740.0,0.00382825]
[1756545002369,1.67611828,108750.0,108740.0,0.00592825]
[1756545003414,1.52123828,108750.0,108740.0,0.00592825]
[1756545003592,1.51925828,108750.0,108740.0,0.00592825]
[1756545003804,1.67409828,108750.0,108740.0,0.00592825]
[1756545004038,0.81762058,108750.0,108740.0,0.00592825]
[1756545004260,1.67409828,108750.0,108740.0,0.00592825]
[1756545004622,1.67607828,108750.0,108740.0,0.00592825]
[1756545004839,1.6760806,108750.0,108740.0,0.00592825]
[1756545005058,1.67608593,108750.0,108740.0,0.00592825]
[1756545005271,1.69191546,108750.0,108740.0,0.00592825]
[1756545007791,1.69191609,108750.0,108740.0,0.00592825]
[1756545009491,1.67608656,108750.0,108740.0,0.00592825]
[1756545014660,1.52124656,108750.0,108740.0,0.00592825]
[1756545014835,1.42204544,108750.0,108740.0,0.00592825]
[1756545015046,1.60595348,108750.0,108740.0,0.00592825]
[1756545015408,1.59949213,108750.0,108740.0,0.00592825]
[1756545015613,1.60595504,108750.0,108740.0,0.00592825]
[1756545016489,1.45119504,108750.0,108740.0,0.00592825]
[1756545016653,1.60595504,108750.0,108740.0,0.00592825]
[1756545016833,1.60591504,108750.0,108740.0,0.00592825]
[1756545017288,1.69421136,108750.0,108740.0,0.00592825]
[1756545017664,1.53949136,108750.0,108740.0,0.00592825]
[1756545017886,1.69421136,108750.0,108740.0,0.00592825]
[1756545018135,1.53949136,108750.0,108740.0,0.00087825]
[1756545018643,1.71402004,108750.0,108740.0,0.00087825]
[1756545018834,1.69417136,108750.0,108740.0,0.00087825]
[1756545019210,1.60587504,108750.0,108740.0,0.00087825]
[1756545024727,1.62572351,108750.0,108740.0,0.00087825]
[1756545026088,1.62572268,108750.0,108740.0,0.00087825]
[1756545027099,1.62572268,108750.0,108740.0,0.01930825]
[1756545027300,1.62572268,108750.0,108740.0,0.00087825]
[1756545029423,1.714019,108750.0,108740.0,0.00087825]
[1756545031462,1.62572268,108750.0,108740.0,0.00087825]
[1756545035934,1.62556268,108750.0,108740.0,0.00604825]
[1756545036701,1.62556231,108750.0,108740.0,0.00604825]
[1756545037270,1.62556231,108750.0,108740.0,0.02447825]
[1756545037480,1.62556231,108750.0,108740.0,0.00604825]
[1756545037691,1.64470374,108750.0,108740.0,0.00604825]
[1756545038258,1.62556231,108750.0,108740.0,0.00408825]
[1756545038460,1.62556231,108750.0,108740.0,0.00087825]
[1756545040366,1.62556226,108750.0,108740.0,0.00087825]
[1756545043781,1.62556197,108750.0,108740.0,0.00087825]
[1756545047428,1.62556292,108750.0,108740.0,0.00087825]
[1756545047835,1.62556261,108750.0,108740.0,0.00087825]
[1756545048581,1.71385893,108750.0,108740.0,0.00087825]
[1756545057812,2.68698779,108750.0,108740.0,1e-08]
[1756545058021,2.68698462,108750.0,108740.0,1e-08]
[1756545058233,2.71179218,108750.0,108740.0,1e-08]
[1756545059120,2.71279218,108750.0,108740.0,1e-08]
[1756545059294,2.71579218,108750.0,108740.0,1e-08]
[1756545059498,2.71479218,108750.0,108740.0,1e-08]
[1756545059954,2.71678523,108750.0,108740.0,1e-08]
[1756545061630,2.73118086,108750.0,108740.0,1e-08]
[1756545063298,2.7063733,108750.0,108740.0,1e-08]
[1756545063714,2.25684879,108750.0,108740.0,1e-08]
[1756545064380,2.10232879,108750.0,108740.0,1e-08]
[1756545064528,2.25680879,108750.0,108740.0,1e-08]
[1756545066033,2.25692879,108750.0,108740.0,1e-08]
[1756545066233,2.24253316,108750.0,108740.0,1e-08]
[1756545067421,2.24252021,108750.0,108740.0,1e-08]
[1756545068101,2.22532553,108750.0,108740.0,1e-08]
[1756545068281,2.24252021,108750.0,108740.0,1e-08]
[1756545069072,2.24248021,108750.0,108740.0,1e-08]
[1756545069673,2.25687541,108750.0,108740.0,1e-08]
[1756545070304,2.29848667,108750.0,108740.0,1e-08]
[1756545070935,2.2984854,108750.0,108740.0,1e-08]
[1756545072848,2.2840902,108750.0,108740.0,1e-08]
[1756545073047,2.2816802,108750.0,108740.0,1e-08]
[1756545073455,2.1271202,108750.0,108740.0,1e-08]
[1756545073657,2.2816802,108750.0,108740.0,1e-08]
[1756545075732,2.2816402,108750.0,108740.0,1e-08]
[1756545076139,2.29603515,108750.0,108740.0,0.00203001]
[1756545076341,2.29603515,108750.0,108740.0,0.00526001]
[1756545076895,2.14151515,108750.0,108740.0,1e-08]
[1756545077096,2.29603515,108750.0,108740.0,1e-08]
[1756545077482,2.14151515,108750.0,108740.0,1e-08]
[1756545077721,2.29603515,108750.0,108740.0,1e-08]
[1756545078085,2.29603538,108750.0,108740.0,1e-08]
[1756545078910,1.91794609,108750.0,108740.0,1e-08]
[1756545082346,2.25791376,108750.0,108740.0,1e-08]
[1756545083768,2.25791376,108750.0,108740.0,0.00310001]
[1756545083924,2.25791376,108750.0,108740.0,0.00514001]
[1756545084338,0.97319721,108750.0,108740.0,0.00514001]
[1756545084538,1.67317491,108750.0,108740.0,0.00514001]
[1756545084742,1.82757491,108750.0,108740.0,0.00514001]
[1756545084946,1.81317996,108750.0,108740.0,0.00514001]
[1756545085384,1.7715687,108750.0,108740.0,0.00514001]
[1756545085781,1.7717287,108750.0,108740.0,0.00514001]
[1756545085998,1.7716887,108750.0,108740.0,0.00514001]
[1756545088262,1.6171687,108750.0,108740.0,0.00514001]
[1756545088469,1.77166155,108750.0,108740.0,0.00514001]
[1756545088616,1.77169581,108750.0,108740.0,0.00514001]
[1756545088817,1.79646599,108750.0,108740.0,0.00514001]
[1756545089234,1.79646533,108750.0,108740.0,0.00514001]
[1756545089434,0.76073745,108750.0,108740.0,0.00514001]
[1756545089619,1.77165515,108750.0,108740.0,0.00514001]
[1756545090457,1.76865515,108750.0,108740.0,0.00514001]
[1756545091233,1.77065515,108750.0,108740.0,0.00514001]
[1756545091672,1.83429689,108750.0,108740.0,0.00514001]
[1756545092256,1.83229689,108750.0,108740.0,0.00514001]
[1756545092678,1.83329689,108750.0,108740.0,0.00514001]
[1756545095748,1.76965515,108750.0,108740.0,0.00514001]
[1756545099069,1.75242098,108750.0,108740.0,0.00514001]
[1756545099288,1.76963223,108750.0,108740.0,0.00514001]
[1756545100100,1.76963183,108750.0,108740.0,0.00514001]
[1756545101742,1.77161183,108750.0,108740.0,1e-08]
[1756545101950,1.85990815,108750.0,108740.0,1e-08]
[1756545102911,1.85990701,108750.0,108740.0,1e-08]
[1756545104326,2.28814586,108750.0,108740.0,1e-08]
[1756545105171,1.85990701,108750.0,108740.0,1e-08]
[1756545106019,2.31889007,108750.0,108740.0,1e-08]
[1756545106226,2.31889093,108750.0,108740.0,1e-08]
[1756545106425,2.16204093,108750.0,108740.0,1e-08]
[1756545106644,1.88820208,108750.0,108740.0,0.00514001]
[1756545108094,1.73587161,108750.0,108740.0,0.00514001]
[1756545108305,1.74101161,108750.0,108740.0,0.00514001]
[1756545109686,1.7345578,108750.0,108740.0,0.00514001]
[1756545109908,1.74101618,108750.0,108740.0,0.00514001]
[1756545110344,1.761955,108750.0,108740.0,0.00514001]
[1756545110555,1.76195523,108750.0,108740.0,1e-08]
[1756545110739,2.19260408,108750.0,108740.0,1e-08]
[1756545113420,2.19019659,108750.0,108740.0,1e-08]
[1756545113988,1.76436774,108750.0,108740.0,1e-08]
[1756545114171,2.19260659,108750.0,108740.0,1e-08]
[1756545115938,2.19019659,108750.0,108740.0,1e-08]
[1756545120419,2.19020302,108750.0,108740.0,1e-08]
[1756545120867,2.03580306,108750.0,108740.0,1e-08]
[1756545121094,2.19016308,108750.0,108740.0,0.00515001]
[1756545121480,1.76194629,108750.0,108740.0,0.00515001]
[1756545122245,2.19018514,108750.0,108740.0,0.00515001]
[1756545122465,2.03582514,108750.0,108740.0,0.00515001]
[1756545122683,1.76194629,108750.0,108740.0,0.00515001]
[1756545123119,2.19018514,108750.0,108740.0,0.00515001]
[1756545124122,2.19018421,108750.0,108740.0,0.00515001]
[1756545125518,2.19018377,108750.0,108740.0,0.00515001]
[1756545125742,2.19018377,108750.0,108740.0,1e-08]
[1756545129858,2.19018501,108750.0,108740.0,1e-08]
[1756545130680,2.19018405,108750.0,108740.0,1e-08]
[1756545132443,2.21739064,108750.0,108740.0,1e-08]
[1756545133255,2.21439064,108750.0,108740.0,1e-08]
[1756545133451,2.21639064,108750.0,108740.0,1e-08]
[1756545134579,2.21839064,108750.0,108740.0,1e-08]
[1756545136794,2.23278612,108750.0,108740.0,1e-08]
[1756545140623,1.48959724,108730.0,108720.0,0.0004]
[1756545140807,1.89535964,108730.0,108720.0,0.0004]
[1756545141011,1.92567203,108730.0,108720.0,0.0004]
[1756545141420,1.92936003,108730.0,108720.0,0.00335]
[1756545141621,1.92936003,108730.0,108720.0,0.00536]
[1756545142202,1.92936003,108730.0,108720.0,0.00636]
[1756545142380,1.92936003,108730.0,108720.0,0.00536]